bitfinex/quotes_ETHUSD_20220115
["timestamp","ask_amount","ask_price","bid_price","bid_amount"]
[1642254015790,19.05516402,3300.2,3300.1,2.59147936]
[1642254015992,0.65,3300.0,3299.7,3.0]
[1642254016193,18.5,3299.8,3299.7,3.0]
[1642254017233,0.65,3299.8,3299.7,3.0]
[1642254017732,10.4,3299.8,3299.7,3.0]
[1642254018632,14.1,3299.8,3299.7,3.0]
[1642254019336,0.65,3299.4,3298.8,0.021822]
[1642254019532,0.65,3299.2,3298.5,0.021822]
[1642254019732,0.65,3299.2,3298.9,0.00738951]
[1642254020134,0.65,3299.2,3298.5,0.0314852]
[1642254020391,0.75818,3298.9,3298.5,0.0314852]
[1642254020592,0.75818,3298.9,3298.6,0.00909478]
[1642254020593,0.65,3298.8,3298.6,0.00909478]
[1642254021092,0.65,3298.8,3298.5,0.0096632]
[1642254021493,1.40819,3298.7,3298.5,0.0096632]
[1642254022292,0.65,3298.5,3298.3,0.021822]
[1642254022492,5.4,3298.5,3298.4,0.01023163]
[1642254022692,7.6747615,3298.5,3298.4,0.01023163]
[1642254022892,7.6747615,3298.5,3298.2,0.01136847]
[1642254023492,7.6747615,3298.5,3298.1,0.0119369]
[1642254023493,4.3,3298.3,3298.1,0.0119369]
[1642254023693,0.65,3298.2,3298.1,0.0119369]
[1642254024237,0.65,3298.2,3297.6,1.41026649]
[1642254024441,0.65,3298.2,3297.5,1.45849413]
[1642254024637,0.75824,3298.3,3297.7,0.00227369]
[1642254024638,0.65,3297.9,3297.7,0.00227369]
[1642254025137,1.84034049,3297.8,3297.7,0.00227369]
[1642254027140,3.6437,3298.8,3297.7,0.00227369]
[1642254027141,0.65,3298.3,3297.7,0.00227369]
[1642254027339,0.65,3298.3,3297.6,2.67537427]
[1642254027340,0.65,3298.3,3297.6,2.67821638]
[1642254027540,0.65113685,3298.3,3297.6,2.67821638]
[1642254027985,0.65113685,3298.3,3297.7,1.45849413]
[1642254028385,0.65,3298.1,3297.8,0.00170527]
[1642254028585,0.65,3298.1,3297.8,2.77792912]
[1642254028786,0.65,3297.9,3297.8,0.00170527]
[1642254028988,0.65,3297.9,3297.6,4.45849413]
[1642254029590,0.65,3297.9,3297.6,3.0]
[1642254031647,0.65,3297.9,3297.6,4.45849413]
[1642254032542,0.65,3297.9,3297.6,3.0]
[1642254032842,2.13811663,3297.7,3297.6,3.0]
[1642254033245,2.13811663,3297.7,3297.6,3.00284211]
[1642254037186,2.13811663,3297.7,3297.6,5.59562993]
[1642254041842,2.13811663,3297.7,3297.6,3.00284211]
[1642254045292,7.18811663,3297.7,3297.6,3.00284211]
[1642254045488,2.13811663,3297.7,3297.6,3.00284211]
[1642254047338,7.48811663,3297.7,3297.6,3.00284211]
[1642254047539,2.93011587,3297.7,3297.6,3.00284211]
[1642254050286,12.88011587,3297.7,3297.6,3.00284211]
[1642254050491,18.23011587,3297.7,3297.6,2.02976837]
[1642254050688,12.88011587,3297.7,3297.6,2.02976837]
[1642254050887,12.88011587,3297.7,3297.6,4.62265422]
[1642254051488,2.93011587,3297.7,3297.6,4.62265422]
[1642254051686,2.93011587,3297.7,3297.6,2.02976837]
[1642254052287,10.43011587,3297.7,3297.6,2.02976837]
[1642254052689,10.43011587,3297.7,3297.6,4.62265422]
[1642254053488,2.93011587,3297.7,3297.6,4.62265422]
[1642254054239,7.63011587,3297.7,3297.6,4.62265422]
[1642254054440,7.63011587,3297.7,3297.6,4.23676297]
[1642254055242,11.23011587,3297.7,3297.6,4.23676297]
[1642254055946,2.93011587,3297.7,3297.6,4.23676297]
[1642254059590,2.93011587,3297.7,3297.6,2.59572796]
[1642254059992,1.44199924,3297.7,3297.6,2.59572796]
[1642254060192,1.44199924,3297.7,3297.6,7.29572796]
[1642254060193,0.65,3297.7,3297.6,7.29572796]
[1642254060391,0.65,3297.9,3297.7,0.03655583]
[1642254060895,0.65,3297.9,3297.8,0.00170527]
[1642254061554,0.65,3297.9,3297.7,0.00227369]
[1642254062040,0.65,3297.9,3297.8,2.59288585]
[1642254062238,0.65,3297.9,3297.8,5.43515655]
[1642254062438,0.65,3297.9,3297.8,5.43686182]
[1642254062639,0.65,3297.9,3297.8,2.84397597]
[1642254063041,0.65,3297.9,3297.8,0.00170527]
[1642254063444,0.65,3297.9,3297.8,2.66902516]
[1642254063644,0.65,3297.9,3297.8,2.59459112]
[1642254064241,0.65,3297.9,3297.8,5.5028545]
[1642254064643,0.65,3297.9,3297.8,5.39912976]
[1642254066389,0.65,3297.9,3297.8,2.59459112]
[1642254066591,0.65,3297.9,3297.8,5.39087709]
[1642254066789,0.65,3297.9,3297.8,2.59459112]
[1642254067191,0.65,3297.9,3297.8,5.3997024]
[1642254067591,0.65,3297.9,3297.8,2.59459112]
[1642254067792,0.65,3297.9,3297.8,5.38920146]
[1642254068596,0.65,3297.9,3297.8,0.00170527]
[1642254069047,0.65,3297.9,3297.5,3.12347129]
[1642254069239,0.65,3297.9,3297.8,2.59288585]
[1642254069639,0.65,3297.9,3297.8,2.59459112]
[1642254070443,0.65,3298.2,3297.8,2.59459112]
[1642254070641,0.65,3298.2,3297.8,0.00170527]
[1642254070843,0.65,3298.2,3297.9,0.00113684]
[1642254071041,0.65,3298.2,3297.7,2.80837941]
[1642254071245,0.65,3297.9,3297.8,0.00170527]
[1642254072046,0.65,3297.9,3297.8,2.59459112]
[1642254072445,1.75956245,3297.9,3297.8,2.59459112]
[1642254072896,1.75956245,3297.9,3297.8,0.00170527]
[1642254073296,1.75956245,3297.9,3297.7,0.00227369]
[1642254073497,0.65,3297.9,3297.8,2.59288585]
[1642254073902,0.65,3297.9,3297.8,2.59459112]
[1642254074099,0.65,3297.9,3297.8,0.00170527]
[1642254074599,0.65,3297.9,3297.8,2.59459112]
[1642254075603,0.65,3297.9,3297.8,0.00170527]
[1642254076002,0.65,3297.9,3297.5,2.83812862]
[1642254076850,0.65,3297.9,3297.6,2.59288585]
[1642254077248,0.65,3297.9,3297.7,0.00227369]
[1642254077850,0.65,3297.9,3297.7,2.68693961]
[1642254078051,0.65,3297.9,3297.7,2.79119369]
[1642254078252,0.65,3297.9,3297.8,10.75170527]
[1642254078453,0.65,3297.9,3297.8,14.25483744]
[1642254079453,0.65,3297.9,3297.8,16.84772329]
[1642254080686,0.65,3297.9,3297.8,17.97973311]
[1642254081088,0.65,3297.9,3297.8,18.30621742]
[1642254082690,0.65,3297.9,3297.8,16.84772329]
[1642254083089,0.65,3297.9,3297.8,18.15653876]
[1642254084138,0.65,3297.9,3297.8,16.84772329]
[1642254084938,0.65,3297.9,3297.8,6.09772329]
[1642254085141,0.65,3297.9,3297.8,6.6620124]
[1642254085342,0.021822,3298.2,3297.8,6.65707028]
[1642254085541,0.021822,3298.2,3297.8,3.86174356]
[1642254085739,0.021822,3298.2,3297.9,2.72963133]
[1642254085942,0.021822,3298.2,3297.9,0.00113684]
[1642254086241,0.021822,3298.2,3297.9,2.71274435]
[1642254086440,0.021822,3298.2,3297.9,5.3056302]
[1642254086639,0.00113685,3298.3,3297.9,5.3056302]
[1642254087241,0.00113685,3298.3,3298.0,2.59288585]
[1642254087441,0.00113685,3298.3,3298.1,2.8708694]
[1642254088093,0.4003,3298.9,3298.4,0.03564571]
[1642254088293,0.4003,3298.9,3298.4,3.94605499]
[1642254088492,0.00341054,3298.9,3298.4,3.94605499]
[1642254088792,0.00341054,3298.9,3298.6,2.75003846]
[1642254088992,0.00341054,3298.9,3298.7,3.05280928]
[1642254089893,0.03474657,3300.2,3298.7,3.05280928]
[1642254089894,0.021822,3300.2,3298.9,11.4]
[1642254090093,4.8296,3300.6,3299.0,5.32908843]
[1642254090094,1.242622,3300.6,3299.0,5.32908843]
[1642254090294,0.00341054,3299.5,3299.0,5.32908843]
[1642254090492,0.00341054,3299.5,3299.0,5.30593928]
[1642254090694,0.00284212,3299.4,3299.2,1.21496658]
[1642254090894,0.00284212,3299.4,3299.3,14.76439032]
[1642254091194,0.021822,3300.2,3299.3,14.90259029]
[1642254091545,0.00682108,3300.1,3299.4,0.7576261]
[1642254091736,0.00682108,3300.1,3299.5,3.17859892]
[1642254091937,0.00625266,3300.0,3299.5,3.17859892]
[1642254092437,0.00568424,3299.9,3299.5,3.17859892]
[1642254092637,0.00568424,3299.9,3299.4,1.1948]
[1642254092838,0.779602,3300.2,3299.4,1.1948]
[1642254092839,0.00511581,3299.8,3299.4,1.1948]
[1642254093037,0.00511581,3299.8,3299.6,2.59288585]
[1642254093238,0.021822,3300.2,3299.6,2.59288585]
[1642254093239,0.00454739,3299.7,3299.6,2.59288585]
[1642254093837,0.00454739,3299.7,3299.4,1.1948]
[1642254094240,0.00397897,3299.6,3299.4,1.1948]
[1642254094638,0.00341054,3299.5,3299.4,1.1948]
[1642254095905,0.00341054,3299.5,3299.2,0.13819997]
[1642254095906,0.02531154,3299.5,3299.2,0.13819997]
[1642254096507,0.00284212,3299.4,3299.2,0.13819997]
[1642254096707,0.00284212,3299.4,3298.9,1.41223571]
[1642254096908,0.0022737,3299.3,3298.9,1.41223571]
[1642254097511,1.49879195,3299.5,3298.9,1.41223571]
[1642254097512,0.02505327,3299.2,3298.9,1.41223571]
[1642254097909,0.00113685,3299.1,3298.9,1.41223571]
[1642254098207,0.74467608,3299.0,3298.8,6.0628]
[1642254098409,0.75808,3298.9,3298.8,6.0628]
[1642254098809,4.10808,3298.9,3298.8,6.0628]
[1642254100544,0.75808,3298.9,3298.8,6.0628]
[1642254100743,1.51724685,3299.1,3298.8,6.0628]
[1642254100945,0.75916685,3299.1,3298.8,6.0628]
[1642254101143,0.75916685,3299.1,3298.8,9.0628]
[1642254101945,1.41222724,3299.0,3298.8,9.0628]
[1642254104790,0.75916685,3299.1,3298.8,9.0628]
[1642254105190,0.75916685,3299.1,3298.9,0.03377944]
[1642254105790,0.00113685,3299.1,3298.8,9.0628]
[1642254106846,0.75917685,3299.1,3298.8,9.0628]
[1642254107045,1.51725615,3299.1,3298.8,9.0628]
[1642254107458,0.75917685,3299.1,3298.8,9.0628]
[1642254107646,0.00113685,3299.1,3298.8,9.0628]
[1642254109651,0.00113685,3299.1,3298.9,2.59236514]
[1642254109852,0.75917685,3299.1,3298.9,2.59236514]
[1642254110053,1.51724985,3299.1,3298.9,2.59236514]
[1642254112797,1.40637332,3299.0,3298.9,2.59236514]
[1642254115445,0.75917685,3299.1,3298.9,2.59236514]
[1642254116745,0.00113685,3299.1,3298.9,2.59236514]
[1642254117145,1.20534037,3299.0,3298.8,10.39679424]
[1642254117348,1.20534037,3299.0,3298.9,2.59220351]
[1642254117547,1.20534037,3299.0,3298.8,10.39679424]
[1642254117794,1.20534037,3299.0,3298.8,9.0628]
[1642254117995,1.96339037,3299.0,3298.8,9.0628]
[1642254121558,2.72149297,3299.0,3298.8,9.0628]
[1642254122944,2.74340697,3299.0,3298.8,9.0628]
[1642254125495,1.98530437,3299.0,3298.8,9.0628]
[1642254130346,2.74340057,3299.0,3298.8,9.0628]
[1642254130947,6.774972,3298.9,3298.8,9.0628]
[1642254131945,0.024972,3298.9,3298.8,9.0628]
[1642254132345,3.974972,3298.9,3298.8,9.0628]
[1642254133397,2.72148657,3299.0,3298.8,9.0628]
[1642254133597,1.96339037,3299.0,3298.8,9.0628]
[1642254134097,1.96339037,3299.0,3298.9,2.6433687]
[1642254134098,1.20534037,3299.0,3298.9,2.6433687]
[1642254134500,1.20534037,3299.0,3298.9,1.34989994]
[1642254134699,1.20534037,3299.0,3298.9,3.99189425]
[1642254135502,1.20534037,3299.0,3298.9,1.34989994]
[1642254136650,0.021822,3299.2,3298.9,4.02481365]
[1642254137145,0.021822,3299.2,3298.9,1.34989994]
[1642254137445,0.021822,3299.2,3298.9,4.027303]
[1642254137648,1.24822232,3299.2,3298.9,4.03056216]
[1642254137846,1.24822232,3299.2,3298.9,1.34989994]
[1642254138246,2.00624232,3299.2,3298.9,1.34989994]
[1642254138848,0.779842,3299.2,3298.9,1.34989994]
[1642254139052,0.021822,3299.2,3298.9,1.34989994]
[1642254139247,0.021822,3299.2,3298.9,4.03647405]
[1642254139647,0.021822,3299.2,3298.9,1.34989994]
[1642254140050,0.021822,3299.2,3298.9,4.03088601]
[1642254140310,0.021822,3299.2,3298.9,1.34989994]
[1642254141098,0.021822,3299.2,3298.8,9.0628]
[1642254141603,0.779842,3299.2,3298.8,9.0628]
[1642254141801,1.11940092,3299.1,3299.0,2.59224967]
[1642254142600,1.11940092,3299.1,3298.9,2.59224967]
[1642254144154,1.11940092,3299.1,3299.0,2.64629855]
[1642254145150,0.79162106,3299.7,3299.0,2.64629855]
[1642254145551,0.0022737,3299.3,3299.0,5.23854822]
[1642254145951,3.9767,3299.8,3299.0,5.23854822]
[1642254145952,0.00170527,3299.2,3299.0,5.23854822]
[1642254146150,0.00170527,3299.2,3299.1,10.16788191]
[1642254146352,1.34720421,3299.4,3299.1,12.76013158]
[1642254146553,0.021822,3299.9,3299.1,12.76013158]
[1642254146756,0.0022737,3299.3,3299.1,12.76013158]
[1642254146951,0.0022737,3299.3,3299.2,7.8694929]
[1642254147152,0.021822,3299.9,3299.2,7.8694929]
[1642254147351,0.025494,3299.8,3299.3,1.34888358]
[1642254147552,0.00511581,3299.8,3299.4,2.73123815]
[1642254147997,0.02777181,3299.8,3299.4,2.70018361]
[1642254148197,0.00511581,3299.8,3299.2,2.59224967]
[1642254148397,0.00511581,3299.8,3299.4,2.59224967]
[1642254149001,0.00511581,3299.8,3299.3,2.59224967]
[1642254149202,0.00511581,3299.8,3299.4,2.77506414]
[1642254149403,0.00511581,3299.8,3299.3,2.59224967]
[1642254150001,1.40073529,3299.3,3299.1,2.59224967]
[1642254150203,1.40073529,3299.3,3299.2,8.64866054]
[1642254151104,1.40073529,3299.3,3299.2,5.8]
[1642254151552,1.40073529,3299.3,3299.1,2.59224967]
[1642254151747,1.40073529,3299.3,3299.2,2.59224967]
[1642254152247,1.42265029,3299.3,3299.2,2.59224967]
[1642254152446,1.42265029,3299.3,3298.9,7.75375306]
[1642254152647,0.00795253,3299.2,3298.9,2.66955375]
[1642254152848,0.00170527,3299.2,3298.9,2.73233999]
[1642254153254,0.00170527,3299.2,3299.0,2.5919743]
[1642254154655,0.00170527,3299.2,3298.9,2.5919743]
[1642254155899,0.00170527,3299.2,3298.9,5.24792737]
[1642254156999,0.00170527,3299.2,3299.0,2.5919743]
[1642254161953,0.00170527,3299.2,3299.1,6.0]
[1642254165398,0.00170527,3299.2,3299.1,8.86110862]
[1642254166000,0.00170527,3299.2,3299.1,17.46110862]
[1642254166400,0.021822,3299.7,3299.4,0.75756]
[1642254166653,1.96317,3301.3,3299.6,1.48946607]
[1642254166850,1.96317,3301.3,3299.7,3.53931364]
[1642254167049,1.42042647,3300.2,3299.7,3.53931364]
[1642254167448,1.42042647,3300.2,3299.7,4.22109494]
[1642254167449,0.00511581,3300.1,3299.7,4.22109494]
[1642254167655,0.00511581,3300.1,3299.7,3.53931364]
[1642254167849,0.00454739,3300.0,3299.7,3.53931364]
[1642254168250,0.00397897,3299.9,3299.8,2.59178656]
[1642254168450,0.00397897,3299.9,3299.8,5.84036953]
[1642254168851,0.00397897,3299.9,3299.8,14.69036953]
[1642254172499,0.00397897,3299.9,3299.8,17.69036953]
[1642254177650,0.00397897,3299.9,3299.8,18.92506582]
[1642254177902,0.00397897,3299.9,3299.8,17.69036953]
[1642254178399,0.00397897,3299.9,3299.8,8.84036953]
[1642254178798,0.00397897,3299.9,3299.8,11.44178656]
[1642254179000,0.00397897,3299.9,3299.8,14.15447476]
[1642254179399,0.00397897,3299.9,3299.8,5.59178656]
[1642254180503,1.22665284,3299.9,3299.8,5.59178656]
[1642254180699,0.00397897,3299.9,3299.8,5.59178656]
[1642254180899,0.00397897,3299.9,3299.8,15.10543895]
[1642254181753,0.00397897,3299.9,3299.8,32.04843895]
[1642254181953,0.00397897,3299.9,3299.8,34.71177445]
[1642254183553,0.00397897,3299.9,3299.8,32.11998789]
[1642254184053,0.00397897,3299.9,3299.8,22.11998789]
[1642254184255,0.00397897,3299.9,3299.8,20.60517789]
[1642254184653,0.00397897,3299.9,3299.8,23.19617549]
[1642254185701,0.00397897,3299.9,3299.8,20.60517789]
[1642254186198,0.00397897,3299.9,3299.8,17.7915255]
[1642254187097,0.00397897,3299.9,3299.8,16.643]
[1642254187298,0.00397897,3299.9,3299.8,15.761]
[1642254188202,0.00397897,3299.9,3299.8,17.22664969]
[1642254194103,0.00397897,3299.9,3299.8,19.81774796]
[1642254196006,0.00397897,3299.9,3299.8,17.22664969]
[1642254197347,1.56078887,3301.1,3299.9,8.5]
[1642254197547,1.56078887,3301.1,3300.0,2.76909587]
[1642254197750,0.00625265,3301.0,3300.0,2.76909587]
[1642254198147,0.00568423,3300.9,3300.1,2.59105636]
[1642254198350,0.00568423,3300.9,3300.2,2.92306051]
[1642254198551,0.00511581,3300.8,3300.2,2.92306051]
[1642254198748,0.00511581,3300.8,3300.3,1.25063822]
[1642254198948,0.00454738,3300.7,3300.3,1.25063822]
[1642254199348,0.00397896,3300.6,3300.3,1.25063822]
[1642254199748,0.00341054,3300.5,3300.4,6.44105636]
[1642254199950,0.00341054,3300.5,3300.4,2.59105636]
[1642254201405,0.00341054,3300.5,3300.1,2.14317821]
[1642254201804,0.00284211,3300.4,3300.2,4.08271389]
[1642254202003,0.00284211,3300.4,3300.3,2.66018495]
[1642254202204,1.56079887,3301.1,3300.3,2.66018495]
[1642254202605,0.00625265,3301.0,3300.3,2.66018495]
[1642254203005,1.56079887,3301.1,3300.0,2.94385884]
[1642254203006,0.00568423,3300.9,3300.0,2.94385884]
[1642254203205,0.00568423,3300.9,3300.2,1.18114217]
[1642254203405,0.00511581,3300.8,3300.2,1.18114217]
[1642254203807,0.00454738,3300.7,3300.0,2.94385884]
[1642254204250,0.00397896,3300.6,3300.0,2.94385884]
[1642254204851,1.56079887,3301.1,3300.3,1.35772685]
[1642254204852,0.00341054,3300.5,3300.3,1.35772685]
[1642254205253,0.00284211,3300.4,3299.9,13.60818455]
[1642254205453,0.00284211,3300.4,3300.0,6.0606]
[1642254205654,0.00227369,3300.3,3300.0,6.0606]
[1642254206055,0.00170527,3300.2,3300.0,8.73637953]
[1642254206256,0.00170527,3300.2,3300.0,6.0606]
[1642254206461,1.56083277,3301.1,3300.0,6.0606]
[1642254206462,0.00113684,3300.1,3300.0,6.0606]
[1642254206857,0.00511581,3300.1,3300.0,6.0606]
[1642254213055,0.00511581,3300.1,3300.0,8.82715666]
[1642254214160,0.00511581,3300.1,3300.0,6.0606]
[1642254214659,0.00511581,3300.1,3300.0,8.85759957]
[1642254215058,1.56080887,3301.1,3300.4,0.33153672]
[1642254215307,0.80323887,3301.1,3300.4,0.33153672]
[1642254215507,0.00113684,3301.0,3300.4,0.33153672]
[1642254218209,0.00113684,3301.0,3300.5,2.65204487]
[1642254218411,0.00113684,3301.0,3300.5,2.66575418]
[1642254218611,0.00113684,3301.0,3300.6,0.00113685]
[1642254219056,0.00113684,3301.0,3300.5,0.00170527]
[1642254220053,0.75871684,3301.0,3300.5,0.00170527]
[1642254221652,0.75876014,3301.0,3300.5,0.00170527]
[1642254221854,0.75763,3300.8,3300.5,2.59289437]
[1642254222253,0.75763,3300.8,3300.6,0.00113685]
[1642254224606,0.75763,3300.8,3300.6,2.59232595]
[1642254229665,8.3830777,3300.7,3300.6,2.59232595]
[1642254229863,9.8985477,3300.7,3300.6,2.59232595]
[1642254230307,17.2985477,3300.7,3300.6,2.59232595]
[1642254230508,18.08986209,3300.7,3300.6,0.00113685]
[1642254231306,20.98986209,3300.7,3300.6,0.00113685]
[1642254237555,23.36405987,3300.7,3300.6,0.00113685]
[1642254238500,20.46405987,3300.7,3300.6,0.00113685]
[1642254239099,18.0337,3300.6,3300.5,3.0]
[1642254241854,18.0337,3300.6,3300.0,6.0606]
[1642254241855,0.2337,3300.3,3300.0,6.0606]
[1642254242056,18.79171,3300.1,3300.0,3.49649685]
[1642254242555,0.2337,3299.9,3299.4,3.88658455]
[1642254242755,0.2337,3299.4,3299.0,3.88658455]
[1642254242963,0.29232262,3299.5,3299.0,3.88658455]
[1642254242964,0.2337,3299.2,3299.0,3.88658455]
[1642254244159,0.2337,3299.2,3299.0,6.88658455]
[1642254244457,0.99177,3299.2,3299.0,6.88658455]
[1642254244659,0.99177,3299.2,3299.0,9.47845523]
[1642254244858,0.2337,3299.2,3299.0,5.59187068]
[1642254245708,0.2337,3299.2,3299.1,2.59187068]
[1642254250862,0.2337,3299.2,3299.1,2.62016968]
[1642254253104,0.21297452,3299.2,3299.1,2.62016968]
[1642254253307,0.21297452,3299.2,3299.1,2.59187068]
[1642254258856,6.76297452,3299.2,3299.1,2.59187068]
[1642254260899,7.55457709,3299.2,3299.1,2.59187068]
[1642254261207,1.00457709,3299.2,3299.1,2.59187068]
[1642254262601,1.76258709,3299.2,3299.1,2.59187068]
[1642254263902,10.81258709,3299.2,3299.1,2.59187068]
[1642254267560,13.91082988,3299.2,3299.1,2.59187068]
[1642254268007,10.81258709,3299.2,3299.1,2.59187068]
[1642254269010,1.76258709,3299.2,3299.1,2.59187068]
[1642254269809,8.56258709,3299.2,3299.1,2.59187068]
[1642254272951,1.76258709,3299.2,3299.1,2.59187068]
[1642254274055,1.00457709,3299.2,3299.1,2.59187068]
[1642254274261,0.21297452,3299.2,3299.1,2.62057468]
[1642254274655,0.21297452,3299.2,3299.1,9.57057468]
[1642254277628,0.21297452,3299.2,3299.1,13.32057468]
[1642254279056,0.21297452,3299.9,3299.2,0.00782668]
[1642254279251,0.21297452,3299.9,3299.3,0.030151]
[1642254279454,0.21297452,3299.9,3299.4,0.02267938]
[1642254279652,0.21297452,3299.9,3299.5,0.029752]
[1642254279851,0.21297452,3299.9,3299.5,0.03600466]
[1642254280052,1.39121112,3299.6,3299.5,0.029752]
[1642254280454,1.39121112,3299.6,3299.5,0.03600466]
[1642254280752,1.39121112,3299.6,3299.5,2.62787534]
[1642254284922,1.39121112,3299.6,3299.5,2.59812334]
[1642254291504,4.74121112,3299.6,3299.5,2.59812334]
[1642254292208,1.39121112,3299.6,3299.5,2.59812334]
[1642254293710,7.54121112,3299.6,3299.5,2.59812334]
[1642254297453,1.39121112,3299.6,3299.5,2.59812334]
[1642254297902,1.39121112,3299.6,3299.5,0.00625266]
[1642254298402,1.39121112,3299.6,3299.2,0.00795793]
[1642254299910,0.21297452,3299.4,3299.2,0.00795793]
[1642254301309,4.43578905,3299.4,3299.2,0.00795793]
[1642254301960,4.43578905,3299.4,3299.1,0.00852635]
[1642254302162,9.06297452,3299.2,3299.1,0.00852635]
[1642254303863,0.21297452,3299.2,3299.1,0.00852635]
[1642254305304,4.11297452,3299.2,3299.1,0.00852635]
[1642254306706,0.21297452,3299.2,3299.1,0.00852635]
[1642254307306,4.01297452,3299.2,3299.1,0.00852635]
[1642254308208,0.21297452,3299.2,3299.1,0.00852635]
[1642254308608,0.97087452,3299.5,3299.1,0.00852635]
[1642254308809,0.21297452,3299.5,3299.2,0.0208857]
[1642254309066,0.21297452,3299.5,3299.3,0.031719]
[1642254309254,0.14842794,3299.4,3299.3,0.0391085]
[1642254309473,0.5098304,3299.4,3299.3,0.031719]
[1642254309854,0.5098304,3299.4,3299.3,2.62335143]
[1642254310259,0.5098304,3299.4,3299.3,7.22335143]
[1642254311456,0.5098304,3299.4,3299.3,2.62335143]
[1642254313303,0.5098304,3299.4,3299.3,11.77335143]
[1642254314105,0.5098304,3299.4,3299.3,13.05792428]
[1642254314503,0.5098304,3299.4,3299.3,11.77335143]
[1642254315304,0.5098304,3299.4,3299.3,22.73677232]
[1642254315705,0.5098304,3299.4,3299.3,28.79857232]
[1642254316556,0.5098304,3299.4,3299.3,32.6864611]
[1642254316851,0.5098304,3299.4,3299.3,33.81052361]
[1642254317552,0.5098304,3299.4,3299.3,35.30762062]
[1642254319153,0.5098304,3299.4,3299.3,33.81052361]
[1642254320609,0.6812,3300.7,3299.4,9.1818107]
[1642254320813,0.6812,3300.7,3299.8,0.038401]
[1642254321009,0.6812,3300.7,3299.9,0.038401]
[1642254321509,0.6812,3300.7,3300.0,0.00341054]
[1642254321709,0.6812,3300.7,3300.1,0.030294]
[1642254321910,0.6812,3300.7,3300.1,1.43786352]
[1642254322109,0.6812,3300.7,3300.2,0.00227369]
[1642254326358,0.6812,3300.7,3300.3,1.39455777]
[1642254326556,0.6812,3300.7,3300.4,0.03372326]
[1642254326757,0.6812,3300.7,3300.4,0.00113685]
[1642254327257,0.6812,3300.7,3300.2,3.0]
[1642254327258,0.6812,3300.7,3300.3,0.00170527]
[1642254327558,0.6812,3300.7,3300.4,1.37937683]
[1642254330203,0.6812,3300.8,3300.4,1.37937683]
[1642254331664,0.6812,3300.8,3300.5,0.01811812]
[1642254331859,0.6812,3300.8,3300.7,1.4873088]
[1642254332259,0.68233685,3300.8,3300.7,1.5250778]
[1642254332459,0.68233685,3300.8,3300.7,4.54680912]
[1642254332661,0.68233685,3300.8,3300.7,10.60610912]
[1642254332860,0.68233685,3300.8,3300.7,7.5843778]
[1642254333059,0.68233685,3300.8,3300.7,17.1843778]
[1642254333461,0.68233685,3300.8,3300.7,7.5843778]
[1642254334060,0.68233685,3300.8,3300.7,10.9843778]
[1642254334462,0.68233685,3300.8,3300.7,14.07883948]
[1642254335303,0.00113685,3300.8,3300.7,14.07883948]
[1642254338108,0.00113685,3300.8,3300.7,17.72883948]
[1642254339661,0.121351,3301.4,3301.0,1.4385995]
[1642254339853,0.121351,3301.4,3301.3,15.645463]
[1642254340057,0.121351,3301.4,3301.3,21.703663]
[1642254340957,0.121351,3301.4,3301.3,22.90330756]
[1642254342357,0.121351,3301.4,3301.3,25.49337238]
[1642254342557,0.652551,3301.5,3301.4,10.55]
[1642254342811,0.652551,3301.5,3301.4,19.61214911]
[1642254343011,0.65652996,3301.5,3301.4,19.61214911]
[1642254343611,0.65652996,3301.5,3301.4,20.80121793]
[1642254343812,0.65652996,3301.5,3301.4,13.65121793]
[1642254344412,0.65652996,3301.5,3301.4,20.12641791]
[1642254345017,0.65652996,3301.5,3301.4,16.24128275]
[1642254346862,0.65652996,3301.5,3301.4,9.83713364]
[1642254347056,0.65652996,3301.5,3301.4,12.83713364]
[1642254348660,0.652551,3301.5,3301.4,12.83713364]
[1642254348859,0.60652996,3301.5,3301.4,12.83713364]
[1642254351210,0.60652996,3301.5,3301.4,12.87216464]
[1642254353010,0.60652996,3301.5,3301.4,12.83713364]
[1642254353410,0.60652996,3301.5,3301.4,10.24706882]
[1642254354456,0.60652996,3301.5,3301.4,10.28146782]
[1642254355457,0.75729,3302.1,3301.4,10.28146782]
[1642254355660,0.60652996,3302.0,3301.4,10.28146782]
[1642254357057,0.60652996,3302.0,3301.8,1.38261017]
[1642254357261,0.60652996,3302.0,3301.9,6.0571]
[1642254357658,0.60937208,3302.0,3301.9,6.0571]
[1642254357905,4.00937208,3302.0,3301.9,6.0571]
[1642254359206,0.60937208,3302.0,3301.9,6.0571]
[1642254364062,0.60937208,3302.0,3301.9,7.417154]
[1642254365507,0.00284212,3302.0,3301.9,7.417154]
[1642254366307,0.00284212,3302.0,3301.9,6.0571]
[1642254368308,0.00284212,3302.0,3301.9,8.64733693]
[1642254368507,0.60937208,3302.0,3301.9,8.64733693]
[1642254373006,0.6219415,3302.0,3301.9,8.64733693]
[1642254373409,0.6219415,3302.0,3301.9,6.0571]
[1642254373606,8.1719415,3302.0,3301.9,6.0571]
[1642254374807,9.47206317,3302.0,3301.9,6.0571]
[1642254375210,1.90949375,3302.0,3301.9,6.0571]
[1642254376561,5.50949375,3302.0,3301.9,6.0571]
[1642254376754,0.00284212,3302.0,3301.9,6.0571]
[1642254376954,0.00284212,3302.0,3301.9,6.116267]
[1642254377955,0.00284212,3302.0,3301.9,6.084659]
[1642254378156,0.00284212,3302.0,3301.9,8.67486537]
[1642254379159,0.00284212,3302.0,3301.9,6.084659]
[1642254381710,0.00284212,3302.0,3301.9,7.29505466]
[1642254381912,0.00284212,3302.0,3301.9,7.32857066]
[1642254382112,0.00284212,3302.0,3301.9,10.10150673]
[1642254382312,0.00284212,3302.0,3301.9,7.32857066]
[1642254382612,0.00284212,3302.0,3301.9,9.91858679]
[1642254387805,0.60652996,3302.6,3301.9,9.91858679]
[1642254388006,1.36370996,3302.6,3302.0,0.034765]
[1642254388208,0.00568424,3302.5,3302.0,0.034765]
[1642254388407,0.00568424,3302.5,3302.1,1.4081982]
[1642254388606,0.61164577,3302.4,3302.1,1.4081982]
[1642254389007,0.00454739,3302.3,3302.1,1.4081982]
[1642254389405,0.00397897,3302.2,3302.1,1.4081982]
[1642254391661,0.00397897,3302.2,3302.1,1.3581982]
[1642254396904,0.00397897,3302.2,3302.1,3.94815773]
[1642254397705,0.00397897,3302.2,3302.1,2.58995953]
[1642254397904,0.00397897,3302.2,3302.1,3.0]
[1642254407054,0.00397897,3302.2,3301.9,6.72244556]
[1642254407555,0.00341054,3302.1,3301.9,6.72244556]
[1642254407856,0.60652996,3302.4,3302.1,2.99658946]
[1642254408258,0.00113685,3302.3,3302.1,3.02514946]
[1642254408657,0.00113685,3302.3,3302.1,2.99658946]